bitfinex-derivatives/quotes_SOLF0:USTF0_20241211
["timestamp","ask_amount","ask_price","bid_price","bid_amount"]
[1733955226282,49.7811,229.13,228.89,6.4302276]
[1733955226483,2.1821,228.96,228.92,2.1824]
[1733955226685,6.4302276,228.95,228.88,6.4302276]
[1733955227091,6.4302276,228.95,228.91,2.1825]
[1733955228593,6.4302276,228.95,228.88,6.4302276]
[1733955229694,6.4302276,228.95,228.91,2.1825]
[1733955230893,2.1821,228.96,228.89,6.4302276]
[1733955230894,8.6122276,228.97,228.89,6.4302276]
[1733955231690,8.6122276,228.97,228.92,2.1825]
[1733955231895,2.1821,228.96,228.92,2.1825]
[1733955236090,2.1821,228.96,228.92,2.1825]
[1733955237593,6.4302276,228.97,228.92,2.1825]
[1733955237787,2.1822,228.95,228.92,2.1825]
[1733955241100,2.1822,228.95,228.89,11.68745606]
[1733955241300,2.1822,228.95,228.91,2.1826]
[1733955247500,2.1823,228.94,228.91,2.1826]
[1733955251296,2.1824,228.93,228.9,8.6129276]
[1733955252501,8.4302276,228.97,228.91,2.1825]
[1733955252893,2.1824,228.94,228.91,2.1825]
[1733955253205,2.1824,228.94,228.9,8.6128276]
[1733955254399,2.1824,228.93,228.9,8.6128276]
[1733955256505,2.1823,228.94,228.9,8.6128276]
[1733955260606,2.9274,229.04,228.92,6.4302276]
[1733955260808,6.4302276,229.02,228.95,6.4302276]
[1733955261012,2.1819,228.98,228.95,8.6124276]
[1733955261211,6.4302276,229.0,228.95,6.4302276]
[1733955262007,2.182,228.98,228.95,6.4302276]
[1733955262507,4.1818,229.0,228.96,2.182]
[1733955263011,8.4302276,229.0,228.96,2.182]
[1733955264611,2.1818,228.99,228.96,2.182]
[1733955267004,4.1817,229.0,228.96,2.182]
[1733955267616,2.0,229.0,228.97,2.1819]
[1733955268517,2.1816,229.02,228.98,2.1819]
[1733955268710,2.0,229.03,228.97,6.4302276]
[1733955269311,2.1816,229.02,228.99,2.1817]
[1733955269513,1.353,229.11,229.01,6.4302276]
[1733955269812,1.353,229.11,228.94,1.4637]
[1733955269813,6.4302276,229.06,229.0,2.1817]
[1733955271011,6.4302276,229.06,228.99,6.4302276]
[1733955271012,2.1814,229.04,228.99,6.4302276]
[1733955271215,6.4302276,229.06,229.01,2.1816]
[1733955271611,2.1813,229.05,229.01,2.1816]
[1733955272116,8.4302276,229.06,229.01,2.1816]
[1733955272316,2.1813,229.04,229.01,2.1816]
[1733955275615,2.1813,229.04,229.0,8.6119276]
[1733955280619,8.4302276,229.06,229.0,8.6119276]
[1733955280822,6.4302276,229.04,229.0,2.1817]
[1733955281722,2.1815,229.03,229.0,2.1817]
[1733955286426,6.4302276,229.04,228.96,2.0]
[1733955286625,2.1815,229.02,228.97,6.4302276]
[1733955287127,2.1815,229.02,228.98,2.1818]
[1733955288224,2.0,229.01,228.97,2.182]
[1733955288722,2.0,229.01,228.95,7.8903276]
[1733955289429,4.1816,229.01,228.95,7.8903276]
[1733955289827,6.4302276,229.0,228.93,6.04386935]
[1733955290128,2.182,228.97,228.93,2.1823]
[1733955290527,2.182,228.97,228.93,8.22616935]
[1733955291122,2.182,228.97,228.93,2.1823]
[1733955291726,8.4302276,228.96,228.92,2.1825]
[1733955292425,2.0,228.96,228.92,2.1825]
[1733955292830,4.1821,228.96,228.93,2.1824]
[1733955294730,2.0,228.96,228.93,2.1824]
[1733955296835,2.0,228.96,228.94,2.1823]
[1733955299423,5.2272025,229.01,228.91,6.4302276]
[1733955299631,2.0,229.0,228.96,2.1821]
[1733955300531,2.1816,229.02,228.97,2.182]
[1733955300731,2.1816,229.02,228.97,6.4302276]
[1733955300732,2.0,229.01,228.97,6.4302276]
[1733955300930,2.0,229.01,228.95,6.4302276]
[1733955301328,2.0,229.01,228.97,2.182]
[1733955301652,2.0,229.01,228.95,6.4302276]
[1733955302331,6.4302276,229.01,228.93,24.17547741]
[1733955302533,2.0,229.02,228.93,6.04386935]
[1733955302731,1.353,229.11,228.96,6.4302276]
[1733955302936,2.1815,229.03,228.99,2.1818]
[1733955303240,2.0,229.03,228.98,6.4302276]
[1733955303437,2.0,229.03,229.01,2.1815]
[1733955303634,2.0,229.03,229.0,6.4302276]
[1733955304135,4.1813,229.05,229.0,6.4302276]
[1733955304528,2.1813,229.05,229.0,6.4302276]
[1733955304731,4.1813,229.05,229.0,6.4302276]
[1733955305737,4.1813,229.05,229.02,2.1815]
[1733955307428,2.0,229.05,229.0,6.4302276]
[1733955307630,2.0,229.05,229.02,6.4302276]
[1733955309730,2.0,229.05,229.03,2.1813]
[1733955311039,4.1811,229.07,229.03,2.1813]
[1733955312040,4.1811,229.07,228.97,6.04386935]
[1733955312041,6.4302276,229.06,228.97,6.04386935]
[1733955312336,6.4302276,229.04,228.97,6.4302276]
[1733955312537,8.6116276,229.04,229.0,2.1817]
[1733955312939,6.4302276,229.04,228.96,1.4029]
[1733955313236,6.4302276,229.04,228.98,2.1818]
[1733955313237,2.1815,229.02,228.98,2.1818]
[1733955314139,2.1815,229.02,228.99,2.1818]
[1733955314344,2.1815,229.02,228.96,1.4029]
[1733955314539,2.1815,229.02,228.96,7.8331276]
[1733955314739,8.6117276,229.02,228.96,7.8331276]
[1733955315542,8.6117276,229.02,228.98,2.1819]
[1733955315941,10.6117276,229.02,228.98,2.1819]
[1733955317146,4.1815,229.02,228.98,2.1819]
[1733955317447,10.6117276,229.02,228.98,2.1819]
[1733955320253,8.4302276,229.02,228.99,2.1818]
[1733955320454,2.6971,229.11,229.0,6.4302276]
[1733955320751,6.4302276,229.08,229.0,6.4302276]
[1733955320954,8.6112276,229.08,229.0,6.4302276]
[1733955321652,8.6112276,229.08,229.03,2.1814]
[1733955322246,6.4302276,229.08,229.03,2.1814]
[1733955322451,2.1811,229.07,229.03,2.1814]
[1733955323753,2.1812,229.06,229.02,2.1814]
[1733955324257,2.1812,229.06,229.03,2.1814]
[1733955324560,8.6112276,229.08,229.03,2.1814]
[1733955324759,6.4302276,229.08,229.03,2.1814]
[1733955324958,6.4302276,229.08,229.04,2.1813]
[1733955325156,8.6112276,229.08,229.04,2.1813]
[1733955326461,10.6112276,229.08,229.04,2.1813]
[1733955327350,2.1809,229.09,229.06,2.1811]
[1733955327549,6.4302276,229.1,229.06,2.1811]
[1733955327550,8.4302276,229.1,229.06,2.1811]
[1733955328355,2.1809,229.09,229.06,2.1811]
[1733955329856,8.4302276,229.1,229.07,2.181]
[1733955330056,8.4302276,229.1,229.03,6.4302276]
[1733955330678,10.6110276,229.1,229.06,2.1811]
[1733955331061,2.1809,229.09,229.05,2.1812]
[1733955331456,2.0,229.11,229.03,6.4302276]
[1733955331657,10.6110276,229.11,229.07,2.181]
[1733955333058,8.4302276,229.11,229.05,2.1812]
[1733955333356,6.4302276,229.09,229.05,2.1812]
[1733955333557,4.1807,229.11,229.06,6.4302276]
[1733955333758,8.4302276,229.11,229.04,6.4302276]
[1733955333979,6.4302276,229.09,229.02,11.76744018]
[1733955334164,8.4302276,229.11,229.02,11.76744018]
[1733955334361,2.1809,229.1,229.04,6.4302276]
[1733955335370,2.1809,229.1,229.06,2.1811]
[1733955335569,2.1809,229.1,229.04,6.4302276]
[1733955336769,2.1809,229.1,229.07,2.181]
[1733955343365,2.1809,229.1,229.06,2.1811]
[1733955349473,2.1809,229.09,229.06,2.1811]
[1733955351181,2.1808,229.1,229.06,2.1811]
[1733955351383,6.4302276,229.11,229.06,2.1811]
[1733955352780,2.1809,229.09,229.06,2.1811]
[1733955354987,2.1808,229.1,229.06,2.1811]
[1733955357182,2.1808,229.1,229.04,11.56642714]
[1733955358090,2.1808,229.1,229.06,2.1811]
[1733955359283,2.1808,229.1,229.04,17.61029649]
[1733955359485,2.1808,229.1,229.06,2.1811]
[1733955360491,6.4302276,229.09,229.06,2.1811]
[1733955360794,8.6111276,229.09,229.06,2.1811]
[1733955362795,2.1812,229.06,229.03,8.22526935]
[1733955362994,2.1812,229.06,229.03,2.1814]
[1733955363885,6.4302276,229.07,229.02,7.47006935]
[1733955364092,6.4302276,229.07,229.03,4.51843191]
[1733955364297,6.4302276,229.07,229.02,9.65156935]
[1733955364500,6.4302276,229.07,229.02,6.04386935]
[1733955364797,2.1812,229.06,229.03,2.1814]
[1733955366999,6.4302276,229.07,229.02,6.04386935]
[1733955367199,2.1813,229.05,229.02,6.04386935]
[1733955367803,8.6115276,229.05,229.01,2.1816]
[1733955368004,2.1813,229.04,229.01,2.1816]
[1733955371511,2.1813,229.05,229.01,2.1816]
[1733955373310,8.6115276,229.05,229.01,2.1816]
[1733955374207,6.4302276,229.03,228.97,7.42926935]
[1733955374513,6.4302276,229.01,228.95,32.05840501]
[1733955374705,6.4302276,229.01,228.96,10.55790023]
[1733955374903,6.4302276,229.01,228.96,6.04386935]
[1733955375313,6.4302276,228.99,228.94,6.04386935]
[1733955375513,6.4302276,228.99,228.93,30.60570501]
[1733955375812,6.4302276,228.99,228.94,4.51219994]
[1733955376012,1.98,229.02,228.93,12.47409695]
[1733955376306,6.4302276,228.99,228.93,6.4302276]
[1733955377709,8.6120276,228.99,228.95,2.1821]
[1733955379013,6.4302276,228.97,228.94,2.1823]
[1733955381318,8.4102276,228.97,228.94,2.1823]
[1733955390921,8.4102276,228.97,228.94,2.1821]
[1733955394330,1.98,228.97,228.94,2.1821]
[1733955394626,1.98,228.97,228.9,11.55190791]
[1733955394627,1.98,228.97,228.95,2.182]
[1733955395632,6.4302276,228.98,228.96,2.1818]
[1733955395827,2.1815,229.01,228.94,6.4302276]
[1733955396027,8.4102276,229.0,228.94,6.4302276]
[1733955396426,6.4302276,229.0,228.96,2.1818]
[1733955396724,1.98,228.99,228.96,2.1818]
[1733955399023,4.1616,228.99,228.96,2.1818]
[1733955400129,1.98,228.99,228.93,6.4302276]
[1733955400333,6.4302276,228.95,228.94,2.182]
[1733955400627,1.98,228.99,228.94,2.182]
[1733955400833,6.4302276,228.97,228.94,2.182]
[1733955401336,2.1817,228.98,228.94,2.182]
[1733955401527,8.6119276,228.98,228.94,2.182]
[1733955403131,6.4302276,228.96,228.93,2.1822]
[1733955407536,2.1818,228.97,228.93,2.1822]
[1733955408836,8.6120276,228.97,228.93,2.1822]
[1733955410041,6.4302276,228.97,228.91,6.04386935]
[1733955410241,2.1817,228.98,228.94,2.182]
[1733955411443,6.4302276,228.97,228.94,2.182]
[1733955412946,8.4102276,228.97,228.94,2.182]
[1733955415350,8.4102276,228.97,228.92,2.1823]
[1733955415550,6.4302276,228.95,228.92,2.1823]
[1733955416747,8.6122276,228.95,228.92,2.1823]
[1733955416945,6.4302276,228.93,228.92,2.1823]
[1733955417651,8.6122276,228.95,228.92,2.1823]
[1733955422254,2.182,228.95,228.92,2.1823]
[1733955422454,8.6122276,228.95,228.92,2.1823]
[1733955424847,8.6122276,228.95,228.9,12.47409695]
[1733955425356,8.6122276,228.95,228.9,6.04386935]
[1733955425657,8.6122276,228.95,228.91,2.1824]
[1733955429358,6.4302276,228.93,228.91,2.1824]
[1733955430061,8.6122276,228.95,228.91,2.1824]
[1733955431959,1.98,228.94,228.91,2.1824]
[1733955432159,6.4302276,228.93,228.91,2.1824]
[1733955435361,6.4302276,228.93,228.9,6.04386935]
[1733955435559,1.98,228.94,228.89,18.13160806]
[1733955435560,6.4302276,228.91,228.89,24.17547741]
[1733955435761,6.4302276,228.91,228.88,24.17547741]
[1733955435967,6.4302276,228.91,228.89,4.51714338]
[1733955436169,6.4302276,228.91,228.9,4.51704668]
[1733955436368,6.4302276,228.91,228.88,24.17547741]
[1733955436571,6.4302276,228.91,228.87,6.04386935]
[1733955436869,6.4302276,228.91,228.86,25.55557741]
[1733955437070,6.4302276,228.91,228.88,2.1826]
[1733955437269,6.4302276,228.91,228.86,25.55557741]
[1733955437270,6.4302276,228.91,228.86,6.04386935]
[1733955438568,2.1825,228.9,228.87,2.1827]
[1733955438773,1.98,228.89,228.85,25.63667741]
[1733955438978,8.4102276,228.89,228.86,4.51556106]
[1733955439170,6.4302276,228.87,228.86,2.1828]
[1733955439371,6.4302276,228.87,228.85,24.17547741]
[1733955439372,6.4302276,228.87,228.83,24.17547741]
[1733955439573,6.4302276,228.87,228.84,4.51457487]
[1733955439873,6.4302276,228.87,228.83,6.04386935]
[1733955440068,6.4302276,228.87,228.82,30.60570501]
[1733955440264,6.4302276,228.87,228.83,4.51499487]
[1733955440472,6.4302276,228.87,228.82,12.47409695]
[1733955440675,6.4302276,228.87,228.85,2.1829]
[1733955442571,10.5928276,228.89,228.85,2.1829]
[1733955444167,6.4302276,228.89,228.83,6.4302276]
[1733955444368,1.98,228.9,228.87,6.4302276]
[1733955444572,1.98,228.91,228.89,6.4302276]
[1733955444772,1.98,228.93,228.92,2.1822]
[1733955445178,6.4302276,228.99,228.91,6.4302276]
[1733955445478,6.4302276,228.99,228.86,6.04386935]
[1733955445479,6.4302276,228.99,228.93,6.4302276]
[1733955445674,8.4102276,228.99,228.93,6.4302276]
[1733955445871,40.28088236,229.01,228.95,6.4302276]
[1733955446073,4.3057,229.08,228.95,6.4302276]
[1733955446074,1.98,229.0,228.95,6.4302276]
[1733955446274,2.1812,229.04,228.95,6.4302276]
[1733955446479,8.4102276,229.03,228.97,6.4302276]
[1733955447183,1.98,229.03,228.97,6.4302276]
[1733955447381,4.1611,229.04,228.97,6.4302276]
[1733955447677,6.4302276,229.03,228.98,2.1817]
[1733955449077,6.4302276,228.99,228.93,6.04386935]
[1733955449380,6.4302276,228.94,228.87,6.04386935]
[1733955449675,8.4102276,228.93,228.89,2.1825]
[1733955450374,6.4302276,228.91,228.86,2.1827]
[1733955450574,6.4302276,228.91,228.83,13.87349695]
[1733955450971,6.4302276,228.89,228.83,13.87349695]
[1733955451179,6.4302276,228.89,228.83,1.3994]
[1733955452080,6.4302276,228.89,228.85,2.1829]
[1733955452980,6.4302276,228.87,228.83,1.3994]
[1733955453796,6.4302276,228.84,228.8,2.1833]
[1733955459089,1.98,228.83,228.8,2.1833]
[1733955464193,1.98,228.83,228.79,2.1835]
[1733955464490,6.4302276,228.8,228.75,2.8078]
[1733955464890,8.6137276,228.8,228.75,1.4243]
[1733955465088,6.4302276,228.8,228.75,1.4243]
[1733955465289,6.4302276,228.78,228.74,1.3483]
[1733955465494,6.4302276,228.78,228.72,6.4302276]
[1733955465695,8.4102276,228.78,228.72,6.4302276]
[1733955465894,10.5938276,228.78,228.74,2.184]
[1733955466095,8.4102276,228.78,228.71,6.4302276]
[1733955466390,2.1837,228.77,228.71,4.37037463]
[1733955466596,2.1837,228.77,228.71,8.61640223]
[1733955467199,8.4102276,228.78,228.72,2.18607904]
[1733955467397,2.1838,228.76,228.72,4.37017904]
[1733955467598,6.4302276,228.76,228.72,4.37017904]
[1733955469291,1.98,228.78,228.72,4.37017904]
[1733955469292,2.1841,228.73,228.72,2.18607904]
[1733955469909,6.4302276,228.74,228.72,2.18607904]
[1733955470702,1.98,228.73,228.72,2.18607904]
[1733955472696,4.1641,228.73,228.72,2.18607904]
[1733955475593,4.1641,228.73,228.69,2.1844]
[1733955475802,6.4302276,228.7,228.69,2.1844]
[1733955476299,6.4302276,228.7,228.6,6.4302276]
[1733955476597,1.98,228.73,228.62,6.4302276]
[1733955476598,6.4302276,228.69,228.62,6.4302276]
[1733955476899,1.98,228.68,228.62,6.4302276]
[1733955477104,6.4302276,228.69,228.64,6.4302276]
[1733955477297,2.1846,228.7,228.59,6.69301546]
[1733955477298,4.1646,228.7,228.59,6.69301546]
[1733955477505,6.4302276,228.69,228.62,6.4302276]
[1733955478004,6.4302276,228.69,228.66,2.185]
[1733955478403,6.4302276,228.67,228.6,6.4302276]
[1733955480098,6.4302276,228.67,228.64,2.1851]
[1733955480896,6.4302276,228.67,228.62,2.1853]
[1733955480897,6.4302276,228.65,228.62,2.1853]
[1733955481102,8.4102276,228.65,228.62,2.1853]
[1733955482908,8.4102276,228.65,228.59,1.4023]
[1733955483706,8.4102276,228.65,228.62,2.1853]
[1733955491412,1.98,228.65,228.61,6.4302276]
[1733955491619,6.4302276,228.69,228.63,6.4302276]
[1733955491819,1.98,228.68,228.63,6.4302276]
[1733955492412,1.98,228.68,228.64,2.1851]
[1733955492613,1.98,228.68,228.63,6.4302276]
[1733955493015,1.98,228.68,228.66,2.1849]
[1733955493212,1.98,228.68,228.65,6.4302276]
[1733955493817,6.4302276,228.71,228.68,2.1847]
[1733955494016,1.98,228.7,228.68,2.1847]
[1733955494620,1.98,228.7,228.65,6.4302276]
[1733955494815,1.98,228.7,228.69,2.1847]
[1733955495721,1.98,228.7,228.65,6.4302276]
[1733955495923,1.98,228.7,228.69,2.1847]
[1733955497325,6.4302276,228.71,228.69,2.1847]
[1733955497519,1.98,228.7,228.69,2.1847]
[1733955498425,2.1844,228.73,228.7,2.1846]
[1733955498617,8.4102276,228.72,228.7,2.1846]
[1733955504531,8.4102276,228.72,228.65,30.60570501]
[1733955504532,10.5947276,228.72,228.68,2.1847]
[1733955504744,6.4302276,228.69,228.68,2.1847]
[1733955508632,6.4302276,228.69,228.64,6.04386935]
[1733955508633,1.98,228.72,228.69,2.1846]
[1733955508833,8.4102276,228.72,228.69,2.1846]
[1733955509932,8.4102276,228.72,228.68,2.1847]
[1733955510535,6.4302276,228.7,228.68,2.1847]
[1733955511132,6.4302276,228.7,228.67,2.1849]
[1733955511534,2.1845,228.71,228.67,2.1849]
[1733955511733,1.98,228.72,228.66,6.4302276]
[1733955511930,6.4302276,228.71,228.65,6.04386935]
[1733955512131,6.4302276,228.71,228.64,12.47409695]
[1733955512333,6.4302276,228.71,228.68,2.1848]
[1733955512834,1.98,228.72,228.68,2.1848]
[1733955513539,1.98,228.71,228.69,2.1846]
[1733955514229,1.98,228.72,228.69,2.1846]
[1733955516140,1.98,228.72,228.66,6.4302276]
[1733955517647,1.98,228.72,228.68,2.1847]
[1733955519540,1.98,228.72,228.68,6.4302276]
[1733955519736,181.690098,229.0,228.7,6.4302276]
[1733955519945,1.3599,228.88,228.75,6.4302276]
[1733955520243,6.4302276,228.77,228.71,6.04386935]
[1733955520440,6.4302276,228.77,228.7,18.13160806]
[1733955520441,6.4302276,228.75,228.69,12.47409695]
[1733955520741,1.98,228.78,228.73,6.4302276]
[1733955520939,6.4302276,228.81,228.75,6.4302276]
[1733955521140,6.4302276,228.81,228.79,2.1837]
[1733955522346,6.4302276,228.81,228.8,2.1836]
[1733955522543,8.4102276,228.83,228.8,2.1836]
[1733955523345,8.4102276,228.83,228.79,2.1837]
[1733955523849,2.1835,228.82,228.79,2.1837]
[1733955525448,2.1835,228.82,228.75,6.4302276]
[1733955526047,2.1835,228.82,228.79,2.1837]
[1733955526359,8.6136276,228.83,228.79,2.1837]
[1733955526650,8.6136276,228.83,228.77,6.4302276]
[1733955526651,2.1836,228.81,228.77,8.6141276]
[1733955526851,6.4302276,228.83,228.77,6.4302276]
[1733955527756,8.6136276,228.83,228.78,2.1837]
[1733955528349,6.4302276,228.83,228.77,6.4302276]
[1733955528548,6.4302276,228.85,228.77,6.4302276]
[1733955529053,6.4302276,228.85,228.82,2.1834]
[1733955529451,6.4302276,228.87,228.84,2.1832]
[1733955530151,1.98,228.88,228.81,6.4302276]
[1733955530350,6.4302276,228.89,228.83,6.4302276]
[1733955530589,6.4302276,228.87,228.79,2.7783]
[1733955530751,6.4302276,228.87,228.79,9.2085276]
[1733955531655,8.6132276,228.87,228.82,2.1834]
[1733955532051,6.4302276,228.85,228.79,9.2085276]
[1733955533757,6.4302276,228.85,228.81,2.1835]
[1733955536663,6.4302276,228.83,228.81,2.1835]
[1733955537663,8.6134276,228.85,228.81,2.1835]
[1733955540762,6.4302276,228.85,228.81,2.1835]
[1733955542565,8.6134276,228.85,228.79,2.7783]
[1733955542765,6.4302276,228.83,228.78,1.4311]
[1733955542967,6.4302276,228.83,228.76,6.4302276]
[1733955543163,6.4302276,228.83,228.73,2.7043]
[1733955543365,1.98,228.86,228.73,2.7043]
[1733955543366,6.4302276,228.81,228.74,8.4102276]
[1733955544161,6.4302276,228.83,228.76,6.4302276]
[1733955544672,8.6136276,228.83,228.79,2.1837]
[1733955546966,6.4302276,228.81,228.73,2.7043]
[1733955547166,6.4302276,228.79,228.73,2.7043]
[1733955547469,8.6140276,228.79,228.74,2.1841]
[1733955548062,8.6140276,228.79,228.73,1.3681]
[1733955548063,8.6140276,228.79,228.75,2.1841]
[1733955548465,6.4302276,228.79,228.75,2.1841]
[1733955550069,6.4302276,228.79,228.76,2.184]
[1733955551572,6.4302276,228.79,228.75,2.1841]
[1733955551766,1.98,228.81,228.74,6.4302276]
[1733955551968,6.4302276,228.8,228.74,6.4302276]
[1733955552162,6.4302276,228.8,228.76,2.1839]
[1733955555272,6.4302276,228.8,228.77,2.1839]
[1733955555884,6.4302276,228.8,228.74,6.4302276]
[1733955556078,8.6138276,228.8,228.76,2.184]
[1733955578691,6.4302276,228.78,228.74,6.05585655]
[1733955578992,6.4302276,228.76,228.73,24.22342622]
[1733955579192,6.4302276,228.76,228.74,4.52090682]
[1733955579393,6.4302276,228.76,228.73,24.22342622]
[1733955579595,6.4302276,228.76,228.74,4.52176104]
[1733955579892,6.4302276,228.76,228.73,24.22342622]
[1733955580093,6.4302276,228.76,228.74,6.70596049]
[1733955580291,6.4302276,228.76,228.74,2.1842]
[1733955580495,6.4302276,228.76,228.74,8.24005655]
[1733955581194,6.4302276,228.76,228.74,6.05585655]
[1733955582289,2.184,228.77,228.74,6.05585655]
[1733955582487,8.6142276,228.77,228.74,6.05585655]
[1733955582689,2.184,228.77,228.74,6.05585655]
[1733955583097,2.1838,228.78,228.75,4.52418096]
[1733955583293,2.1838,228.78,228.74,6.05585655]
[1733955583496,2.1838,228.78,228.75,4.52417735]
[1733955583692,2.1838,228.78,228.74,6.05585655]
[1733955583887,2.1838,228.78,228.73,24.22342622]
[1733955584097,2.1838,228.78,228.74,4.52473332]
[1733955584293,2.1838,228.78,228.73,24.22342622]
[1733955584501,2.1838,228.78,228.74,4.52473332]
[1733955584695,6.4302276,228.75,228.74,2.1841]
[1733955584896,6.4302276,228.75,228.74,4.52445183]
[1733955585194,6.4302276,228.75,228.72,24.22342622]
[1733955585500,6.4302276,228.75,228.73,4.52452955]
[1733955585795,6.4302276,228.75,228.71,24.22342622]
[1733955585991,6.4302276,228.75,228.72,4.52389371]
[1733955586192,6.4302276,228.75,228.72,2.1843]
[1733955586899,6.4302276,228.73,228.71,2.1845]
[1733955587690,6.4302276,228.73,228.68,6.4302276]
[1733955587893,6.4302276,228.73,228.68,12.48608415]
[1733955588291,6.4302276,228.73,228.68,6.4302276]
[1733955588598,6.4302276,228.71,228.65,24.22342622]
[1733955588793,8.4102276,228.71,228.66,4.51806017]
[1733955588992,8.4102276,228.71,228.65,6.05585655]
[1733955589399,8.4102276,228.71,228.67,2.1849]
[1733955590197,8.4102276,228.71,228.68,2.1847]
[1733955595697,8.4102276,228.71,228.64,6.4302276]
[1733955595897,6.4302276,228.69,228.62,6.05585655]
[1733955596402,6.4302276,228.69,228.65,2.185]
[1733955596703,1.98,228.71,228.63,6.4302276]
[1733955596900,6.4302276,228.7,228.63,6.4302276]
[1733955597301,6.4302276,228.7,228.67,2.1848]
[1733955598393,6.4302276,228.68,228.67,2.1848]
[1733955599399,6.4302276,228.7,228.67,2.1848]
[1733955603002,6.4302276,228.7,228.68,2.1848]
[1733955604498,6.4302276,228.7,228.67,2.1848]
[1733955607108,1.98,228.71,228.67,2.1848]
[1733955607310,8.4102276,228.71,228.67,2.1848]
[1733955609402,8.4102276,228.71,228.63,6.4302276]
[1733955609705,1.98,228.72,228.65,6.4302276]
[1733955610704,1.98,228.72,228.7,2.1845]
[1733955610901,1.98,228.72,228.67,6.4302276]
[1733955611710,6.4302276,228.75,228.67,6.4302276]
[1733955611910,8.4102276,228.75,228.71,2.1844]
[1733955613211,40.32137044,228.78,228.69,6.4302276]
[1733955613406,8.4102276,228.76,228.69,6.4302276]
[1733955613606,8.4102276,228.76,228.74,2.1842]
[1733955615812,1.98,228.76,228.74,2.1842]
[1733955616115,6.4302276,228.77,228.74,2.1842]
[1733955617415,8.4102276,228.77,228.74,2.1842]
[1733955618417,6.4302276,228.77,228.74,2.1842]
[1733955619113,6.4302276,228.77,228.71,6.4302276]
[1733955619417,6.4302276,228.77,228.75,2.1841]
[1733955620012,6.4302276,228.77,228.76,2.184]
[1733955620319,40.32137044,228.78,228.76,2.184]
[1733955622423,6.4302276,228.79,228.78,2.1838]
[1733955623121,1.98,228.8,228.78,2.1838]
[1733955623323,6.4302276,228.81,228.79,2.1836]
[1733955626221,6.4302276,228.81,228.78,2.1838]
[1733955630920,2.1834,228.82,228.78,2.1838]
[1733955631118,6.4302276,228.8,228.78,2.1838]
[1733955631525,6.4302276,228.8,228.79,2.1837]
[1733955632127,2.1831,228.87,228.77,6.4302276]
[1733955632324,6.4302276,228.85,228.77,6.4302276]
[1733955632829,6.4302276,228.85,228.82,2.1833]
[1733955633526,6.4302276,228.85,228.83,2.1833]
[1733955633721,6.4302276,228.85,228.79,6.4302276]
[1733955634631,6.4302276,228.85,228.82,2.1834]
[1733955637423,6.4302276,228.85,228.83,2.1833]
[1733955637626,6.4302276,228.86,228.83,2.1833]
[1733955639030,6.4302276,228.86,228.82,2.1834]
[1733955639430,8.6133276,228.86,228.82,2.1834]
[1733955645032,6.4302276,228.86,228.76,1.98]
[1733955645236,2.1832,228.85,228.8,2.1836]
[1733955646030,2.1832,228.85,228.81,2.1835]
[1733955651036,6.4302276,228.86,228.8,2.1836]
[1733955651037,8.6133276,228.86,228.8,2.1836]
[1733955651236,8.6133276,228.86,228.78,6.4302276]
[1733955651943,8.6133276,228.86,228.81,2.1835]
[1733955655741,8.6133276,228.86,228.82,2.1834]
[1733955657241,2.1831,228.86,228.82,2.1834]
[1733955657546,8.4102276,228.87,228.78,12.48608415]
[1733955657845,8.4102276,228.87,228.79,4.51264733]
[1733955658045,8.4102276,228.87,228.78,12.48608415]
[1733955658248,8.4102276,228.87,228.79,4.51264974]
[1733955658448,8.4102276,228.87,228.78,30.65365382]
[1733955658643,2.1831,228.86,228.82,2.1834]
[1733955661046,1.98,228.87,228.79,6.4302276]
[1733955661249,2.1831,228.86,228.82,2.1834]
[1733955664243,2.1835,228.82,228.78,26.40722622]
[1733955664447,2.1835,228.82,228.79,4.51820393]
[1733955664647,2.1835,228.82,228.78,8.23965655]
[1733955664847,2.1835,228.82,228.79,4.51830294]
[1733955665148,2.1835,228.82,228.78,26.40722622]
[1733955665350,2.1835,228.82,228.79,4.51964164]
[1733955665648,2.1835,228.82,228.78,26.40722622]
[1733955665948,2.1835,228.82,228.79,4.51970895]
[1733955666150,2.1835,228.82,228.78,26.40722622]
[1733955666351,2.1835,228.82,228.79,10.57746334]